lending/lending_fUSD_20241228
["ID","MTS","AMOUNT","RATE_DAILY","PERIOD"]
[346928963,1735390261175,-500.90639538,0.00011898,2]
[346928964,1735390261184,-301.39823538,0.00011898,2]
[346928965,1735390261195,-198.60176462,0.00011898,2]
[346928966,1735390261204,-500.0,0.00011898,2]
[346928967,1735390261214,-500.0,0.00011898,2]
[346928968,1735390261223,-500.0,0.00011898,2]
[346928969,1735390261232,-500.0,0.00011898,2]
[346928970,1735390261242,-278.61441158,0.00011898,2]
[346928971,1735390261254,-221.38558842,0.00011898,2]
[346928972,1735390261263,-500.0,0.00011898,2]
[346928973,1735390261273,-500.0,0.00011898,2]
[346928974,1735390261283,-237.99456765,0.00011898,2]
[346928975,1735390261293,-500.0,0.00011898,2]
[346928976,1735390261307,-500.0,0.00011898,2]
[346928977,1735390261317,-500.0,0.00011898,2]
[346928978,1735390261326,-345.53375255,0.00011898,2]
[346928979,1735390261338,-154.46624745,0.00011898,2]
[346928980,1735390261348,-500.0,0.00011898,2]
[346928981,1735390261357,-500.0,0.00011898,2]
[346928982,1735390261367,-500.0,0.00011898,2]
[346928983,1735390261376,-461.01224531,0.00012296,2]
[346928984,1735390261388,-495.92775469,0.00012296,2]
[346928985,1735390261397,-18.16864925,0.00012329,2]
[346928986,1735390261409,-558.56303475,0.00012329,2]
[346928987,1735390261418,-3.47614213,0.00012329,2]
[346928988,1735390261437,-573.25554187,0.00012329,2]
[346928989,1735390261446,-576.731684,0.00012329,2]
[346928990,1735390261455,-576.731684,0.00012329,2]
[346928991,1735390261465,-576.731684,0.00012329,2]
[346928992,1735390261474,-576.731684,0.00012329,2]
[346928993,1735390261483,-576.731684,0.00012329,2]
[346928994,1735390261492,-576.731684,0.00012329,2]
[346928995,1735390261501,-576.731684,0.00012329,2]
[346928996,1735390261511,-576.731684,0.00012329,2]
[346928997,1735390261520,-576.731684,0.00012329,2]
[346928998,1735390261530,-956.94,0.0001257,2]
[346928999,1735390261540,-230.0,0.000126,2]
[346929000,1735390261550,-956.94,0.00012844,2]
[346929001,1735390261560,-5673.26045747,0.00013,2]
[346929002,1735390261575,-2732.31868738,0.00013,2]
[346929003,1735390261588,-468.092625,0.00013,2]
[346929004,1735390261599,-760.07716815,0.00013,2]
[346929005,1735390261609,-965.47893929,0.00013,2]
[346929006,1735390261620,-31064.64999992,0.00013,2]
[346929007,1735390261631,-468.3,0.00013,2]
[346929008,1735390261643,-847.67254827,0.00013,2]
[346929009,1735390261655,-5024.76127973,0.00013,2]
[346929010,1735390261666,-385.36424049,0.00013,2]
[346929011,1735390261677,-865.69,0.00013,2]
[346929012,1735390261688,-6348.342,0.00013,2]
[346929013,1735390261711,-10892.39908829,0.00013,2]
[346929014,1735390261805,-576.731684,0.00012329,2]
[346929015,1735390261815,-274.93040795,0.00012329,2]
[346929016,1735390261827,-301.80127605,0.00012329,2]
[346929017,1735390261836,-576.731684,0.00012329,2]
[346929018,1735390261846,-576.731684,0.00012329,2]
[346929019,1735390261855,-576.731686,0.00012329,2]
[346929020,1735390261864,-9787.40112178,0.00013,2]
[346929021,1735390261876,-1699.68651401,0.00013,2]
[346929022,1735390261892,-67330.99350277,0.00013,2]
[346929023,1735390261903,-1018.33,0.00013,2]
[346929024,1735390261913,-3257.921871,0.00013,2]
[346929025,1735390261924,-896.82497611,0.00013,2]
[346929026,1735390261935,-383.57266039,0.00013,2]
[346929027,1735390261946,-5620.00299894,0.00013,2]
[346929028,1735390261956,-2446.67393065,0.00013,2]
[346929029,1735390261967,-962.70634916,0.00013,2]
[346929030,1735390261978,-294.0,0.00013,2]
[346929031,1735390261990,-35143.23435944,0.00013,2]
[346929032,1735390262007,-2964.84107012,0.00013,2]
[346929033,1735390262018,-2632266.72908736,0.00013,2]
[346929034,1735390262029,-331.07,0.00013,2]
[346929035,1735390262302,-531.18699998,0.00012018,2]
[346929036,1735390262315,-1146.65714572,0.00012018,2]
[346929037,1735390262327,-781.27465,0.00012018,2]
[346929038,1735390262348,-7832.68964708,0.00012018,2]
[346929039,1735390262358,-1250.0,0.00012295,2]
[346929040,1735390262368,-107279.33220593,0.00013,2]
[346929041,1735390262379,-2367.26859173,0.00013,2]
[346929042,1735390262390,-51792.66096618,0.00013,2]
[346929043,1735390262678,-2215.017023,0.00011961,2]
[346929044,1735390262687,-1102.0,0.00012632,2]
[346929045,1735390262697,-5096.67102065,0.00013,2]
[346929046,1735390262708,-4785.14926045,0.00013,2]
[346929047,1735390262735,-10519.84635024,0.00013,2]
[346929048,1735390262747,-5809.64591392,0.00013,2]
[346929049,1735390262761,-6064.0000005,0.00013,2]
[346929051,1735390486520,168.22,8.811e-05,2]
[346929075,1735391336298,856.09,8.508e-05,2]
[346929079,1735391431748,-153.98951026,9.756e-05,2]
[346929080,1735391431758,-108.77296974,0.00010137,2]
[346929081,1735391431769,-173.11703026,0.00010137,2]
[346929082,1735391431778,-139.57755022,0.0001039,2]
[346929083,1735391431789,-110.42244978,0.0001039,2]
[346929084,1735391431798,-177.47858504,0.00010396,2]
[346929085,1735391431806,-150.0,0.00010432,2]
[346929086,1735391431815,-455.39,0.00010474,2]
[346929087,1735391431826,-276.6,0.00010496,2]
[346929088,1735391431834,-1000.0,0.00010545,2]
[346929089,1735391431844,-150.0,0.00010701,2]
[346929090,1735391431853,-856.09,0.00010771,2]
[346929091,1735391431862,-200.0,0.00010784,2]
[346929092,1735391431871,-250.0,0.00010857,2]
[346929093,1735391431880,-150.0,0.00010986,2]
[346929094,1735391431889,-556.35,0.0001103,2]
[346929095,1735391431898,-155.55,0.00011044,2]
[346929096,1735391431906,-300.0,0.0001111,2]
[346929097,1735391431915,-10267.868,0.00011111,2]
[346929098,1735391431924,-6582.26872636,0.00011311,2]
[346929099,1735391431933,-150.0,0.0001137,2]
[346929100,1735391431942,-219.4593,0.00011375,2]
[346929101,1735391431951,-708.5438,0.00011375,2]
[346929102,1735391431960,-810.2737,0.00011375,2]
[346929103,1735391431968,-150.0,0.00011382,2]
[346929104,1735391431977,-150.0,0.00011401,2]
[346929105,1735391431986,-500.0,0.00011473,2]
[346929106,1735391431995,-500.0,0.00011473,2]
[346929107,1735391432004,-472.24,0.00011473,2]
[346929108,1735391432012,-500.0,0.00011473,2]
[346929109,1735391432021,-948.52,0.00011473,2]
[346929110,1735391432030,-500.0,0.00011473,2]
[346929111,1735391432039,-500.0,0.00011473,2]
[346929112,1735391432048,-500.0,0.00011473,2]
[346929113,1735391432057,-500.0,0.00011473,2]
[346929114,1735391432066,-500.0,0.00011473,2]
[346929115,1735391432075,-500.0,0.00011473,2]
[346929116,1735391432084,-500.0,0.00011473,2]
[346929117,1735391432094,-500.0,0.00011473,2]
[346929118,1735391432105,-500.0,0.00011473,2]
[346929120,1735391432114,-500.0,0.00011473,2]
[346929122,1735391432128,-500.0,0.00011473,2]
[346929125,1735391432143,-500.0,0.00011473,2]
[346929127,1735391432152,-619.3,0.00011473,2]
[346929128,1735391432162,-838.29,0.00011473,2]
[346929129,1735391432172,-2017.32,0.00011473,2]
[346929130,1735391432181,-935.78,0.00011473,2]
[346929131,1735391432191,-2376.0,0.00011474,2]
[346929132,1735391432199,-4618.04431219,0.00011474,2]
[346929133,1735391432246,-3819.97534348,0.00011474,2]
[346929134,1735391432257,-4513.24034433,0.00011474,2]
[346929135,1735391432266,-1068.57,0.00011474,2]
[346929136,1735391432275,-912.88,0.00011474,2]
[346929137,1735391432284,-645.36,0.00011474,2]
[346929138,1735391432294,-1716.52,0.00011474,2]
[346929139,1735391432303,-4837.84121491,0.00011474,2]
[346929140,1735391432314,-312.16968063,0.00011474,2]
[346929141,1735391432348,-1991.94910446,0.00011474,2]
[346929142,1735391432357,-500.0,0.00011474,2]
[346929143,1735391432366,-1162.34,0.00011474,2]
[346929144,1735391432375,-2147.55,0.00011474,2]
[346929145,1735391432385,-1134.89,0.00011474,2]
[346929146,1735391432394,-1119.24,0.00011474,2]
[346929147,1735391432403,-796.83,0.00011474,2]
[346929148,1735391432413,-1143.05,0.00011475,2]
[346929149,1735391432424,-759.37,0.00011475,2]
[346929150,1735391432434,-1642.99,0.00011475,2]
[346929151,1735391432443,-1580.9,0.00011475,2]
[346929152,1735391432453,-19859.1456,0.00011647,2]
[346929153,1735391432462,-8113.7299,0.00011647,2]
[346929154,1735391432471,-1000.0,0.00011648,2]
[346929155,1735391432481,-2500.0,0.00011648,2]
[346929156,1735391432491,-3865.69,0.00011648,2]
[346929157,1735391432500,-1224.84,0.00011648,2]
[346929158,1735391432509,-2019.01,0.00011648,2]
[346929159,1735391432518,-600.56,0.00011648,2]
[346929160,1735391432528,-1274.32,0.00011648,2]
[346929161,1735391432537,-500.0,0.00011648,2]
[346929162,1735391432547,-1125.84,0.00011648,2]
[346929163,1735391432556,-2813.63,0.00011648,2]
[346929164,1735391432565,-879.46,0.00011648,2]
[346929165,1735391432575,-500.0,0.00011648,2]
[346929166,1735391432584,-500.0,0.00011648,2]
[346929167,1735391432593,-566.47,0.00011648,2]
[346929168,1735391432603,-1069.36,0.00011648,2]
[346929169,1735391432612,-1482.32,0.00011648,2]
[346929170,1735391432621,-150.0,0.00011685,2]
[346929171,1735391432630,-150.0,0.00011688,2]
[346929172,1735391432639,-150.0,0.00011688,2]
[346929173,1735391432653,-150.0,0.00011688,2]
[346929174,1735391432662,-150.0,0.00011688,2]
[346929175,1735391432671,-150.0,0.00011688,2]
[346929176,1735391432681,-150.0,0.00011688,2]
[346929177,1735391432690,-150.0,0.00011688,2]
[346929178,1735391432699,-150.0,0.00011688,2]
[346929179,1735391432708,-261.93400207,0.00011688,2]
[346929180,1735391432717,-150.0,0.00011688,2]
[346929181,1735391432726,-150.0,0.00011724,2]
[346929182,1735391432736,-650.78,0.00011746,2]
[346929183,1735391432745,-733.49,0.00011746,2]
[346929184,1735391432754,-1387.46,0.00011746,2]
[346929185,1735391432763,-2315.28,0.00011746,2]
[346929186,1735391432773,-500.0,0.00011747,2]
[346929187,1735391432782,-521.90644102,0.00011747,2]
[346929188,1735391432792,-500.0,0.00011747,2]
[346929189,1735391432801,-948.52,0.00011747,2]
[346929190,1735391432811,-634.14,0.00011747,2]
[346929191,1735391432822,-500.0,0.00011747,2]
[346929192,1735391432832,-500.0,0.00011747,2]
[346929193,1735391432842,-197.76,0.00011747,2]
[346929194,1735391432852,-500.0,0.00011747,2]
[346929195,1735391432861,-500.0,0.00011747,2]
[346929196,1735391432871,-500.0,0.00011747,2]
[346929197,1735391432881,-500.0,0.00011747,2]
[346929198,1735391432891,-500.0,0.00011747,2]
[346929199,1735391432900,-500.0,0.00011747,2]
[346929200,1735391432910,-500.0,0.00011747,2]
[346929201,1735391432919,-500.0,0.00011747,2]
[346929202,1735391432929,-619.3,0.00011747,2]
[346929203,1735391432939,-838.29,0.00011747,2]
[346929204,1735391432948,-2017.32,0.00011747,2]
[346929205,1735391432957,-935.78,0.00011747,2]
[346929206,1735391432967,-2376.0,0.00011748,2]
[346929207,1735391432976,-12951.26,0.00011748,2]
[346929208,1735391432988,-1068.57,0.00011748,2]
[346929209,1735391432998,-912.88,0.00011748,2]
[346929210,1735391433007,-775.66,0.00011748,2]
[346929211,1735391433017,-500.0,0.00011748,2]
[346929212,1735391433026,-500.0,0.00011748,2]
[346929213,1735391433036,-645.36,0.00011748,2]
[346929214,1735391433045,-500.0,0.00011748,2]
[346929215,1735391433054,-500.0,0.00011748,2]
[346929216,1735391433065,-500.0,0.00011748,2]
[346929217,1735391433079,-1716.52,0.00011748,2]
[346929218,1735391433091,-585.72,0.00011748,2]
[346929219,1735391433103,-7141.96,0.00011748,2]
[346929220,1735391433112,-1660.97,0.00011748,2]
[346929221,1735391433122,-2205.72,0.00011748,2]
[346929222,1735391433132,-500.0,0.00011748,2]
[346929223,1735391433142,-924.61,0.00011748,2]
[346929224,1735391433152,-500.0,0.00011748,2]
[346929225,1735391433163,-1162.34,0.00011748,2]
[346929226,1735391433174,-2147.55,0.00011748,2]
[346929227,1735391433184,-500.0,0.00011748,2]
[346929228,1735391433194,-1134.89,0.00011748,2]
[346929229,1735391433204,-1119.24,0.00011748,2]
[346929230,1735391433214,-796.83,0.00011748,2]
[346929231,1735391433224,-500.0,0.00011748,2]
[346929232,1735391433234,-1143.05,0.00011749,2]
[346929233,1735391433244,-759.37,0.00011749,2]
[346929234,1735391433254,-1642.99,0.00011749,2]
[346929235,1735391433264,-1580.9,0.00011749,2]
[346929236,1735391433275,-150.0,0.00011756,2]
[346929237,1735391433285,-150.0,0.0001176,2]
[346929238,1735391433295,-150.0,0.00011774,2]
[346929239,1735391433305,-455.39,0.00011783,2]
[346929240,1735391433315,-150.0,0.00011796,2]
[346929241,1735391433327,-500.0,0.00011821,2]
[346929242,1735391433340,-827.37,0.00011821,2]
[346929243,1735391433351,-500.0,0.00011821,2]
[346929244,1735391433361,-500.0,0.00011821,2]
[346929245,1735391433371,-500.0,0.00011821,2]
[346929246,1735391433381,-500.0,0.00011821,2]
[346929247,1735391433391,-500.0,0.00011821,2]
[346929248,1735391433402,-500.0,0.00011821,2]
[346929249,1735391433412,-500.0,0.00011821,2]
[346929250,1735391433422,-500.0,0.00011821,2]
[346929251,1735391433432,-697.02,0.00011821,2]
[346929252,1735391433442,-500.0,0.00011821,2]
[346929253,1735391433451,-500.0,0.00011821,2]
[346929254,1735391433461,-19119.5828,0.00011822,2]
[346929255,1735391433471,-150.0,0.00011824,2]
[346929256,1735391433481,-150.0,0.00011832,2]
[346929257,1735391433491,-150.0,0.00011861,2]
[346929258,1735391433501,-1000.0,0.00011863,2]
[346929259,1735391433510,-156.0,0.00011866,2]
[346929260,1735391433519,-156.0,0.00011866,2]
[346929261,1735391433529,-156.0,0.00011866,2]
[346929262,1735391433539,-156.0,0.00011866,2]
[346929263,1735391433549,-156.0,0.00011866,2]
[346929264,1735391433559,-156.0,0.00011866,2]
[346929265,1735391433569,-156.0,0.00011866,2]
[346929266,1735391433580,-156.0,0.00011866,2]
[346929267,1735391433589,-156.0,0.00011866,2]
[346929268,1735391433599,-156.0,0.00011866,2]
[346929269,1735391433608,-156.0,0.00011866,2]
[346929270,1735391433618,-156.0,0.00011866,2]
[346929271,1735391433628,-156.0,0.00011866,2]
[346929272,1735391433637,-156.0,0.00011866,2]
[346929273,1735391433647,-201.0,0.00011867,2]
[346929274,1735391433656,-201.0,0.00011867,2]
[346929275,1735391433666,-201.0,0.00011867,2]
[346929276,1735391433675,-201.0,0.00011867,2]
[346929277,1735391433684,-201.0,0.00011867,2]
[346929278,1735391433694,-201.0,0.00011867,2]
[346929279,1735391433703,-201.0,0.00011867,2]
[346929280,1735391433713,-201.0,0.00011867,2]
[346929281,1735391433722,-201.0,0.00011867,2]
[346929282,1735391433732,-201.0,0.00011867,2]
[346929283,1735391433741,-201.0,0.00011867,2]
[346929284,1735391433751,-201.0,0.00011867,2]
[346929285,1735391433760,-201.0,0.00011867,2]
[346929286,1735391433770,-201.0,0.00011867,2]
[346929287,1735391433779,-150.0,0.00011868,2]
[346929288,1735391433789,-156.0,0.00011872,2]
[346929289,1735391433798,-156.0,0.00011872,2]
[346929290,1735391433807,-156.0,0.00011872,2]
[346929291,1735391433817,-156.0,0.00011872,2]
[346929292,1735391433828,-156.0,0.00011872,2]
[346929293,1735391433838,-156.0,0.00011872,2]
[346929294,1735391433847,-156.0,0.00011872,2]
[346929295,1735391433857,-156.0,0.00011872,2]
[346929296,1735391433867,-156.0,0.00011872,2]
[346929297,1735391433876,-156.0,0.00011872,2]
[346929298,1735391433886,-156.0,0.00011872,2]
[346929299,1735391433895,-156.0,0.00011872,2]
[346929300,1735391433904,-156.0,0.00011872,2]
[346929301,1735391433914,-201.0,0.00011874,2]
[346929302,1735391433924,-201.0,0.00011874,2]
[346929303,1735391433934,-201.0,0.00011874,2]
[346929304,1735391433944,-201.0,0.00011874,2]
[346929305,1735391433953,-201.0,0.00011874,2]
[346929306,1735391433963,-201.0,0.00011874,2]
[346929307,1735391433972,-201.0,0.00011874,2]
[346929308,1735391433982,-201.0,0.00011874,2]
[346929309,1735391433991,-201.0,0.00011874,2]
[346929310,1735391434001,-201.0,0.00011874,2]
[346929311,1735391434011,-201.0,0.00011874,2]
[346929312,1735391434020,-201.0,0.00011874,2]
[346929313,1735391434029,-201.0,0.00011874,2]
[346929314,1735391434039,-150.0,0.00011876,2]
[346929315,1735391434050,-150.0,0.00011893,2]
[346929316,1735391434060,-778.2019,0.000119,2]
[346929317,1735391434070,-150.0,0.00011904,2]
[346929318,1735391434079,-150.0,0.00011918,2]
[346929319,1735391434089,-560.8,0.00011921,2]
[346929320,1735391434103,-500.0,0.00011921,2]
[346929321,1735391434113,-500.0,0.00011921,2]
[346929322,1735391434122,-500.0,0.00011921,2]
[346929323,1735391434132,-500.0,0.00011921,2]
[346929324,1735391434143,-500.0,0.00011921,2]
[346929325,1735391434153,-500.0,0.00011921,2]
[346929326,1735391434163,-500.0,0.00011921,2]
[346929327,1735391434173,-500.0,0.00011921,2]
[346929328,1735391434183,-500.0,0.00011921,2]
[346929329,1735391434193,-529.57091247,0.00011921,2]
[346929330,1735391434203,-500.0,0.00011921,2]
[346929331,1735391434213,-500.0,0.00011921,2]
[346929332,1735391434223,-500.0,0.00011921,2]
[346929333,1735391434232,-500.0,0.00011921,2]
[346929334,1735391434242,-500.0,0.00011921,2]
[346929335,1735391434252,-248.76,0.00011921,2]
[346929336,1735391434263,-429.56288018,0.00011921,2]
[346929337,1735391434275,-500.0,0.00011921,2]
[346929338,1735391434285,-500.0,0.00011921,2]
[346929339,1735391434295,-500.0,0.00011921,2]
[346929340,1735391434306,-259.92,0.00011921,2]
[346929341,1735391434316,-500.0,0.00011921,2]
[346929342,1735391434326,-500.0,0.00011921,2]
[346929343,1735391434336,-500.0,0.00011921,2]
[346929344,1735391434349,-500.0,0.00011921,2]
[346929345,1735391434360,-500.0,0.00011921,2]
[346929346,1735391434370,-460.4,0.00011921,2]
[346929347,1735391434380,-500.0,0.00011921,2]
[346929348,1735391434390,-500.0,0.00011921,2]
[346929349,1735391434400,-500.0,0.00011921,2]
[346929350,1735391434410,-500.0,0.00011921,2]
[346929351,1735391434419,-500.0,0.00011921,2]
[346929352,1735391434429,-500.0,0.00011921,2]
[346929353,1735391434439,-500.0,0.00011921,2]
[346929354,1735391434449,-500.0,0.00011921,2]
[346929355,1735391434459,-500.0,0.00011921,2]
[346929356,1735391434470,-500.0,0.00011921,2]
[346929357,1735391434480,-500.0,0.00011921,2]
[346929358,1735391434490,-500.0,0.00011921,2]
[346929359,1735391434499,-500.0,0.00011921,2]
[346929360,1735391434509,-500.0,0.00011921,2]
[346929361,1735391434518,-500.0,0.00011921,2]
[346929362,1735391434528,-1302.9,0.00011921,2]
[346929363,1735391434538,-500.0,0.00011921,2]
[346929364,1735391434548,-500.0,0.00011921,2]
[346929365,1735391434558,-500.0,0.00011921,2]
[346929366,1735391434568,-500.0,0.00011921,2]
[346929367,1735391434579,-500.0,0.00011921,2]
[346929368,1735391434589,-500.0,0.00011921,2]
[346929369,1735391434599,-500.0,0.00011921,2]
[346929370,1735391434609,-500.0,0.00011921,2]
[346929371,1735391434619,-436.01063811,0.00011921,2]
[346929372,1735391434629,-501.38208654,0.00011921,2]
[346929373,1735391434639,-500.0,0.00011921,2]
[346929374,1735391434649,-500.0,0.00011921,2]
[346929375,1735391434658,-500.0,0.00011921,2]
[346929376,1735391434668,-500.0,0.00011921,2]
[346929377,1735391434678,-500.0,0.00011921,2]
[346929378,1735391434688,-531.43,0.00011921,2]
[346929379,1735391434698,-500.0,0.00011921,2]
[346929380,1735391434708,-500.0,0.00011921,2]
[346929381,1735391434718,-500.0,0.00011921,2]
[346929382,1735391434728,-500.0,0.00011921,2]
[346929383,1735391434738,-500.0,0.00011921,2]
[346929384,1735391434748,-500.0,0.00011921,2]
[346929385,1735391434757,-500.0,0.00011921,2]
[346929386,1735391434768,-211.68631551,0.00011921,2]
[346929387,1735391434778,-500.0,0.00011921,2]
[346929388,1735391434787,-500.0,0.00011921,2]
[346929389,1735391434797,-500.0,0.00011921,2]
[346929390,1735391434807,-500.0,0.00011921,2]
[346929391,1735391434817,-500.0,0.00011921,2]
[346929392,1735391434829,-500.0,0.00011921,2]
[346929393,1735391434838,-500.0,0.00011921,2]
[346929394,1735391434848,-3865.69,0.00011922,2]
[346929395,1735391434857,-1224.84,0.00011922,2]
[346929396,1735391434867,-2019.01,0.00011922,2]
[346929397,1735391434881,-600.56,0.00011922,2]
[346929398,1735391434890,-1274.32,0.00011922,2]
[346929399,1735391434900,-500.0,0.00011922,2]
[346929400,1735391435136,-1125.84,0.00011922,2]
[346929401,1735391435147,-2813.63,0.00011922,2]
[346929402,1735391435156,-879.46,0.00011922,2]
[346929403,1735391435167,-500.0,0.00011922,2]
[346929404,1735391435177,-500.0,0.00011922,2]
[346929405,1735391435186,-566.47,0.00011922,2]
[346929406,1735391435196,-1069.36,0.00011922,2]
[346929407,1735391435206,-1482.32,0.00011922,2]
[346929408,1735391435217,-5000.0,0.00011923,2]
[346929409,1735391435226,-150.0,0.0001194,2]
[346929410,1735391435236,-150.0,0.00011947,2]
[346929411,1735391435245,-150.0,0.00011961,2]
[346929412,1735391435254,-1068.766,0.00011972,2]
[346929413,1735391435264,-500.0,0.00011972,2]
[346929414,1735391435275,-1800.0,0.00011972,2]
[346929415,1735391435284,-150.0,0.00011976,2]
[346929416,1735391435293,-450.0,0.00012,2]
[346929417,1735391435303,-5000.0,0.00012,7]
[346929418,1735391435313,-25068.0,0.00012,2]
[346929419,1735391435323,-150.0,0.00012012,2]
[346929420,1735391435332,-150.0,0.00012019,2]
[346929421,1735391435342,-650.78,0.0001202,2]
[346929422,1735391435351,-733.49,0.0001202,2]
[346929423,1735391435361,-1387.46,0.0001202,2]
[346929424,1735391435371,-2315.28,0.0001202,2]
[346929425,1735391435380,-500.0,0.00012021,2]
[346929426,1735391435390,-500.0,0.00012021,2]
[346929427,1735391435400,-948.52,0.00012021,2]
[346929428,1735391435409,-500.0,0.00012021,2]
[346929429,1735391435418,-500.0,0.00012021,2]
[346929430,1735391435428,-500.0,0.00012021,2]
[346929431,1735391435437,-500.0,0.00012021,2]
[346929432,1735391435447,-500.0,0.00012021,2]
[346929433,1735391435456,-500.0,0.00012021,2]
[346929434,1735391435467,-500.0,0.00012021,2]
[346929435,1735391435476,-500.0,0.00012021,2]
[346929436,1735391435485,-500.0,0.00012021,2]
[346929437,1735391435494,-500.0,0.00012021,2]
[346929438,1735391435503,-619.3,0.00012021,2]
[346929439,1735391435513,-838.29,0.00012021,2]
[346929440,1735391435522,-2017.32,0.00012021,2]
[346929441,1735391435532,-935.78,0.00012021,2]
[346929442,1735391435544,-2376.0,0.00012022,2]
[346929443,1735391435554,-12951.26,0.00012022,2]
[346929444,1735391435563,-1068.57,0.00012022,2]
[346929445,1735391435572,-912.88,0.00012022,2]
[346929446,1735391435582,-775.66,0.00012022,2]
[346929447,1735391435591,-500.0,0.00012022,2]
[346929448,1735391435600,-500.0,0.00012022,2]
[346929449,1735391435610,-645.36,0.00012022,2]
[346929450,1735391435620,-500.0,0.00012022,2]
[346929451,1735391435631,-500.0,0.00012022,2]
[346929452,1735391435640,-500.0,0.00012022,2]
[346929453,1735391435650,-1716.52,0.00012022,2]
[346929454,1735391435660,-585.72,0.00012022,2]
[346929455,1735391435669,-7141.96,0.00012022,2]
[346929456,1735391435678,-1660.97,0.00012022,2]
[346929457,1735391435687,-2205.72,0.00012022,2]
[346929458,1735391435696,-500.0,0.00012022,2]
[346929459,1735391435706,-924.61,0.00012022,2]
[346929460,1735391435715,-500.0,0.00012022,2]
[346929461,1735391435724,-1162.34,0.00012022,2]
[346929462,1735391435733,-2147.55,0.00012022,2]
[346929463,1735391435743,-500.0,0.00012022,2]
[346929464,1735391435752,-1134.89,0.00012022,2]
[346929465,1735391435761,-1119.24,0.00012022,2]
[346929466,1735391435770,-796.83,0.00012022,2]
[346929467,1735391435779,-500.0,0.00012022,2]
[346929468,1735391435788,-1143.05,0.00012023,2]
[346929469,1735391435798,-759.37,0.00012023,2]
[346929470,1735391435807,-1642.99,0.00012023,2]
[346929471,1735391435816,-1580.9,0.00012023,2]
[346929472,1735391435827,-150.0,0.00012025,2]
[346929473,1735391435836,-150.0,0.00012029,2]
[346929474,1735391435845,-150.0,0.00012034,2]
[346929475,1735391435854,-150.0,0.00012048,2]
[346929476,1735391435863,-150.0,0.00012057,2]
[346929477,1735391435873,-150.0,0.00012084,2]
[346929478,1735391435882,-500.0,0.00012095,2]
[346929479,1735391435891,-827.37,0.00012095,2]
[346929480,1735391435900,-500.0,0.00012095,2]
[346929481,1735391435910,-500.0,0.00012095,2]
[346929482,1735391435919,-500.0,0.00012095,2]
[346929483,1735391435928,-500.0,0.00012095,2]
[346929484,1735391435937,-500.0,0.00012095,2]
[346929485,1735391435947,-500.0,0.00012095,2]
[346929486,1735391435956,-337.44626469,0.00012095,2]
[346929487,1735391435965,-500.0,0.00012095,2]
[346929488,1735391435974,-697.02,0.00012095,2]
[346929489,1735391435983,-500.0,0.00012095,2]
[346929490,1735391435993,-500.0,0.00012095,2]
[346929491,1735391436002,-150.0,0.00012098,2]
[346929492,1735391436011,-500.0,0.000121,2]
[346929493,1735391436020,-151.9083744,0.00012106,2]
[346929494,1735391436030,-150.0,0.00012121,2]